fUST/lending_fUST_20250713
["ID","MTS","AMOUNT","RATE_DAILY","PERIOD"]
[371660989,1752381050369,-569.0,0.0001984,2]
[371660991,1752381050378,-460.0,0.0001984,2]
[371660993,1752381050387,-300.35889039,0.00019841,2]
[371660995,1752381050396,-460.0,0.00019841,2]
[371660997,1752381050406,-460.0,0.00019841,2]
[371660999,1752381050415,-460.0,0.00019841,2]
[371661001,1752381050424,-460.0,0.00019841,2]
[371661003,1752381050434,-460.0,0.00019841,2]
[371661005,1752381050444,-460.0,0.00019841,2]
[371661007,1752381050453,-450.35227123,0.00019841,2]
[371661009,1752381050462,-460.0,0.00019841,2]
[371661011,1752381050471,-460.0,0.00019841,2]
[371661013,1752381050481,-460.0,0.00019841,2]
[371661015,1752381050490,-460.0,0.00019841,2]
[371661017,1752381050499,-460.0,0.00019841,2]
[371661019,1752381050510,-460.0,0.00019841,2]
[371661021,1752381050519,-460.0,0.00019841,2]
[371661023,1752381050528,-460.0,0.00019841,2]
[371661025,1752381050538,-460.0,0.00019841,2]
[371661027,1752381050547,-460.0,0.00019841,2]
[371661029,1752381050557,-460.0,0.00019841,2]
[371661031,1752381050567,-460.0,0.00019841,2]
[371661033,1752381050579,-163.725809,0.00019841,2]
[371661036,1752381050588,-460.0,0.00019842,2]
[371661038,1752381050598,-471.45373568,0.00019842,2]
[371661040,1752381050607,-189.89821008,0.00019842,2]
[371661042,1752381050617,-460.0,0.00019842,2]
[371661044,1752381050626,-460.0,0.00019842,2]
[371661046,1752381050635,-460.0,0.00019842,2]
[371661048,1752381050645,-464.22433652,0.00019842,2]
[371661050,1752381050655,-1610.1,0.00019842,2]
[371661052,1752381050665,-469.10008909,0.00019842,2]
[371661053,1752381050675,-460.0,0.00019842,2]
[371661055,1752381050685,-460.0,0.00019842,2]
[371661057,1752381050695,-463.11174211,0.00019842,2]
[371661059,1752381050704,-460.0,0.00019842,2]
[371661060,1752381050713,-552.32,0.00019842,2]
[371661061,1752381050723,-460.0,0.00019842,2]
[371661062,1752381050732,-1164.25,0.00019842,2]
[371661063,1752381050742,-460.0,0.00019842,2]
[371661064,1752381050750,-460.0,0.00019842,2]
[371661065,1752381050759,-1183.95,0.00019842,2]
[371661066,1752381050768,-151.0,0.00019861,2]
[371661067,1752381050777,-151.0,0.00019861,2]
[371661068,1752381050786,-193.293069,0.00019865,2]
[371661069,1752381050795,-193.293069,0.00019865,2]
[371661070,1752381050804,-339.675967,0.00019865,2]
[371661071,1752381050813,-339.675967,0.00019865,2]
[371661073,1752381050822,-151.0,0.00019888,2]
[371661074,1752381050832,-151.638699,0.00019888,2]
[371661076,1752381050841,-151.0,0.00019888,2]
[371661078,1752381050851,-151.0,0.00019888,2]
[371661080,1752381050860,-151.429077,0.00019888,2]
[371661082,1752381050870,-152.492386,0.00019888,2]
[371661084,1752381050879,-151.0,0.00019888,2]
[371661086,1752381050889,-151.0,0.00019888,2]
[371661088,1752381050900,-151.0,0.00019888,2]
[371661090,1752381050910,-151.212755,0.00019888,2]
[371661092,1752381050919,-151.0,0.00019888,2]
[371661095,1752381050930,-151.0,0.00019888,2]
[371661105,1752381051024,-216.35613,0.00019888,2]
[371661107,1752381051035,-229.397117,0.00019888,2]
[371661109,1752381051044,-151.0,0.00019888,2]
[371661111,1752381051054,-151.0,0.00019888,2]
[371661113,1752381051063,-644.631289,0.00019888,2]
[371661115,1752381051073,-644.631289,0.00019888,2]
[371661117,1752381051083,-151.0,0.00019888,2]
[371661119,1752381051093,-151.0,0.00019888,2]
[371661121,1752381051103,-151.0,0.00019888,2]
[371661123,1752381051114,-151.0,0.00019888,2]
[371661126,1752381051124,-151.0,0.00019888,2]
[371661128,1752381051134,-151.0,0.00019888,2]
[371661130,1752381051143,-151.0,0.00019889,2]
[371661131,1752381051154,-151.970727,0.00019889,2]
[371661133,1752381051164,-151.0,0.00019889,2]
[371661135,1752381051173,-151.0,0.00019889,2]
[371661137,1752381051184,-152.641295,0.00019889,2]
[371661139,1752381051194,-151.0,0.00019889,2]
[371661141,1752381051204,-151.0,0.00019889,2]
[371661143,1752381051214,-151.0,0.00019889,2]
[371661145,1752381051223,-151.0,0.00019889,2]
[371661147,1752381051232,-152.843522,0.00019889,2]
[371661149,1752381051241,-200.774323,0.00019889,2]
[371661151,1752381051251,-151.0,0.00019889,2]
[371661153,1752381051260,-644.631289,0.00019889,2]
[371661155,1752381051269,-644.631289,0.00019889,2]
[371661157,1752381051278,-151.0,0.00019889,2]
[371661159,1752381051288,-193.293069,0.00019889,2]
[371661161,1752381051300,-151.0,0.00019889,2]
[371661163,1752381051310,-193.293069,0.00019889,2]
[371661165,1752381051319,-339.675967,0.00019889,2]
[371661167,1752381051329,-339.675967,0.00019889,2]
[371661169,1752381051340,-151.0,0.00019889,2]
[371661171,1752381051349,-151.0,0.00019889,2]
[371661173,1752381051359,-151.57880195,0.00019889,2]
[371661175,1752381051368,-151.53698743,0.00019889,2]
[371661177,1752381051379,-156.1511662,0.00019889,2]
[371661179,1752381051389,-151.302372,0.0001989,2]
[371661181,1752381051399,-151.0,0.0001989,2]
[371661183,1752381051408,-151.0,0.0001989,2]
[371661185,1752381051417,-164.56462,0.0001989,2]
[371661187,1752381051427,-1778.91,0.000199,2]
[371661189,1752381051436,-151.0,0.000199,2]
[371661191,1752381051446,-151.0,0.000199,2]
[371661193,1752381051455,-1669.67286546,0.000199,2]
[371661195,1752381051468,-4169.33244912,0.000199,2]
[371661197,1752381051479,-500.0,0.000199,2]
[371661199,1752381051491,-1336.30043752,0.000199,2]
[371661202,1752381051502,-358.26354368,0.000199,2]
[371661204,1752381051513,-4721.65918506,0.000199,2]
[371661206,1752381051522,-460.0,0.00019905,2]
[371661208,1752381051532,-151.0,0.00019916,2]
[371661210,1752381051541,-151.0,0.00019916,2]
[371661212,1752381051550,-163.725809,0.00019932,2]
[371661214,1752381051559,-151.0,0.00019944,2]
[371661215,1752381051568,-246.92763346,0.00019944,2]
[371661217,1752381051577,-432.07915826,0.00019958,2]
[371661220,1752381051589,-38.01037763,0.00019958,2]
[371661222,1752381051598,-397.50037521,0.00019958,2]
[371661224,1752381051610,-62.49962479,0.00019958,2]
[371661226,1752381051619,-294.50097723,0.00019958,2]
[371661228,1752381051630,-165.49902277,0.00019958,2]
[371661230,1752381051640,-460.0,0.00019958,2]
[371661232,1752381051650,-460.0,0.00019958,2]
[371661234,1752381051659,-344.50097733,0.00019958,2]
[371661236,1752381051671,-115.49902267,0.00019958,2]
[371661238,1752381051680,-460.0,0.00019958,2]
[371661240,1752381051690,-460.0,0.00019958,2]
[371661242,1752381051699,-460.0,0.00019958,2]
[371661244,1752381051709,-460.0,0.00019958,2]
[371661246,1752381051719,-114.06836033,0.00019958,2]
[371661248,1752381051731,-356.02450556,0.00019958,2]
[371661250,1752381051740,-462.57984992,0.00019958,2]
[371661252,1752381051750,-462.11840802,0.00019958,2]
[371661254,1752381051759,-460.0,0.00019958,2]
[371661256,1752381051768,-460.0,0.00019958,2]
[371661258,1752381051777,-460.0,0.00019958,2]
[371661260,1752381051787,-460.0,0.00019958,2]
[371661262,1752381051796,-460.75050656,0.00019958,2]
[371661264,1752381051805,-460.0,0.00019958,2]
[371661266,1752381051815,-460.0,0.00019958,2]
[371661268,1752381051825,-460.0,0.00019958,2]
[371661270,1752381051834,-174.74553884,0.00019958,2]
[371661272,1752381051846,-285.25446116,0.00019958,2]
[371661274,1752381051859,-248.66553884,0.00019958,2]
[371661278,1752381051887,-150.54744764,0.00019958,2]
[371661281,1752381051901,-460.0,0.00019958,2]
[371661283,1752381051916,-460.0,0.00019958,2]
[371661286,1752381051931,-460.0,0.00019958,2]
[371661288,1752381051946,-460.0,0.00019958,2]
[371661291,1752381051961,-590.94,0.00019958,2]
[371661293,1752381051977,-460.0,0.00019958,2]
[371661296,1752381051991,-460.0,0.00019958,2]
[371661298,1752381052004,-460.0,0.00019958,2]
[371661301,1752381052018,-460.0,0.00019958,2]
[371661303,1752381052033,-302.35402081,0.00019958,2]
[371661306,1752381052048,-460.0,0.00019958,2]
[371661308,1752381052059,-460.0,0.00019958,2]
[371661310,1752381052073,-460.0,0.00019958,2]
[371661313,1752381052086,-460.0,0.00019958,2]
[371661315,1752381052102,-460.0,0.00019958,2]
[371661318,1752381052117,-461.7232881,0.00019958,2]
[371661320,1752381052133,-460.0,0.00019958,2]
[371661323,1752381052149,-460.0,0.00019958,2]
[371661325,1752381052161,-461.56918414,0.00019958,2]
[371661327,1752381052172,-460.0,0.00019958,2]
[371661330,1752381052184,-460.0,0.00019958,2]
[371661332,1752381052200,-460.0,0.00019958,2]
[371661335,1752381052213,-460.0,0.00019958,2]
[371661337,1752381052225,-460.0,0.00019958,2]
[371661339,1752381052239,-460.0,0.00019958,2]
[371661342,1752381052251,-175.10623887,0.00019958,2]
[371661344,1752381052263,-460.0,0.00019958,2]
[371661346,1752381052273,-460.0,0.00019958,2]
[371661348,1752381052286,-460.0,0.00019958,2]
[371661351,1752381052303,-460.0,0.00019958,2]
[371661353,1752381052315,-460.0,0.00019958,2]
[371661355,1752381052326,-460.0,0.00019958,2]
[371661357,1752381052339,-244.00965639,0.00019958,2]
[371661359,1752381052351,-460.0,0.00019958,2]
[371661362,1752381052363,-460.0,0.00019958,2]
[371661364,1752381052376,-460.0,0.00019958,2]
[371661366,1752381052388,-460.0,0.00019958,2]
[371661368,1752381052400,-151.0,0.0001996,2]
[371661371,1752381052413,-151.0,0.0001996,2]
[371661373,1752381052424,-163.380339,0.0001996,2]
[371661375,1752381052437,-258.65595581,0.0001996,2]
[371661378,1752381052449,-151.0,0.0001996,2]
[371661380,1752381052462,-490.47343035,0.0001996,2]
[371661382,1752381052475,-458.60562814,0.0001996,2]
[371661385,1752381052487,-460.0,0.0001996,2]
[371661387,1752381052499,-460.0,0.0001996,2]
[371661389,1752381052511,-460.0,0.0001996,2]
[371661392,1752381052523,-460.0,0.0001996,2]
[371661394,1752381052536,-460.0,0.0001996,2]
[371661396,1752381052545,-460.0,0.0001996,2]
[371661398,1752381052554,-151.0,0.0001996,2]
[371661400,1752381052564,-461.84286751,0.0001996,2]
[371661402,1752381052573,-460.0,0.0001996,2]
[371661404,1752381052582,-460.0,0.0001996,2]
[371661406,1752381052592,-463.51996624,0.0001996,2]
[371661408,1752381052601,-460.0,0.0001996,2]
[371661410,1752381052610,-460.0,0.0001996,2]
[371661412,1752381052620,-460.0,0.0001996,2]
[371661414,1752381052629,-501.80441671,0.0001996,2]
[371661416,1752381052638,-460.0,0.0001996,2]
[371661418,1752381052648,-502.80813246,0.0001996,2]
[371661420,1752381052657,-462.89808477,0.0001996,2]
[371661422,1752381052667,-460.0,0.0001996,2]
[371661424,1752381052676,-460.0,0.0001996,2]
[371661426,1752381052686,-463.37119084,0.0001996,2]
[371661428,1752381052695,-460.0,0.0001996,2]
[371661430,1752381052705,-460.0,0.0001996,2]
[371661432,1752381052714,-463.41769715,0.0001996,2]
[371661434,1752381052723,-460.0,0.0001996,2]
[371661436,1752381052733,-460.0,0.0001996,2]
[371661438,1752381052742,-462.80126218,0.0001996,2]
[371661440,1752381052752,-460.0,0.0001996,2]
[371661442,1752381052762,-460.0,0.0001996,2]
[371661444,1752381052771,-460.0,0.0001996,2]
[371661446,1752381052781,-460.0,0.0001996,2]
[371661448,1752381052791,-460.0,0.0001996,2]
[371661450,1752381052800,-460.0,0.0001996,2]
[371661452,1752381052810,-460.0,0.0001996,2]
[371661454,1752381052819,-460.0,0.0001996,2]
[371661456,1752381052828,-460.0,0.0001996,2]
[371661458,1752381052838,-460.0,0.0001996,2]
[371661460,1752381052847,-460.0,0.0001996,2]
[371661462,1752381052857,-460.0,0.0001996,2]
[371661464,1752381052867,-460.0,0.0001996,2]
[371661466,1752381052878,-460.0,0.0001996,2]
[371661473,1752381053093,-460.0,0.0001996,2]
[371661474,1752381053109,-460.0,0.0001996,2]
[371661475,1752381053120,-460.0,0.0001996,2]
[371661476,1752381053130,-340.40381351,0.0001996,2]
[371661477,1752381053140,-460.0,0.0001996,2]
[371661478,1752381053150,-467.83042782,0.0001996,2]
[371661479,1752381053160,-468.50741069,0.0001996,2]
[371661480,1752381053170,-510.9555099,0.0001996,2]
[371661481,1752381053180,-460.0,0.0001996,2]
[371661482,1752381053190,-151.0,0.00019961,2]
[371661483,1752381053199,-644.631289,0.00019961,2]
[371661484,1752381053209,-644.631289,0.00019961,2]
[371661485,1752381053219,-223.28869828,0.00019971,2]
[371661486,1752381053228,-160.0,0.00019973,2]
[371661488,1752381053237,-501.009275,0.00019973,2]
[371661490,1752381053247,-501.41629517,0.00019973,2]
[371661491,1752381053256,-501.34478499,0.00019973,2]
[371661494,1752381053266,-151.0,0.00019988,2]
[371661495,1752381053275,-152.659286,0.00019988,2]
[371661498,1752381053285,-151.0,0.00019988,2]
[371661499,1752381053296,-151.0,0.00019988,2]
[371661501,1752381053307,-152.40852,0.00019988,2]
[371661503,1752381053316,-151.0,0.00019989,2]
[371661505,1752381053326,-151.0,0.00019989,2]
[371661507,1752381053335,-151.0,0.00019989,2]
[371661509,1752381053345,-151.0,0.00019989,2]
[371661511,1752381053354,-29869.83731427,0.00019989,2]
[371661513,1752381053364,-152.188917,0.00019989,2]
[371661515,1752381053374,-151.0,0.00019989,2]
[371661517,1752381053384,-193.293069,0.00019989,2]
[371661519,1752381053394,-193.293069,0.00019989,2]
[371661521,1752381053404,-339.675967,0.00019989,2]
[371661523,1752381053414,-339.675967,0.00019989,2]
[371661526,1752381053424,-460.0,0.00019995,2]
[371661528,1752381053432,-460.0,0.00019995,2]
[371661530,1752381053441,-1882.52,0.00019995,2]
[371661532,1752381053450,-535.04,0.00019995,2]
[371661534,1752381053460,-460.0,0.00019995,2]
[371661535,1752381053470,-163.725809,0.00020023,2]
[371661538,1752381053481,-151.0,0.00020059,2]
[371661539,1752381053491,-151.0,0.00020059,2]
[371661541,1752381053501,-644.631289,0.00020059,2]
[371661543,1752381053510,-644.631289,0.00020059,2]
[371661545,1752381053519,-151.0,0.00020059,2]
[371661547,1752381053529,-151.0,0.00020059,2]
[371661549,1752381053538,-462.64975676,0.00020059,2]
[371661551,1752381053548,-151.0,0.00020059,2]
[371661553,1752381053557,-466.77810299,0.00020059,2]
[371661555,1752381053567,-151.0,0.0002006,2]
[371661557,1752381053576,-154.163725,0.0002006,2]
[371661559,1752381053585,-151.0,0.0002006,2]
[371661561,1752381053595,-151.0,0.0002006,2]
[371661563,1752381053604,-151.0,0.0002006,2]
[371661565,1752381053613,-151.0,0.0002006,2]
[371661567,1752381053623,-644.631289,0.0002006,2]
[371661569,1752381053633,-644.631289,0.0002006,2]
[371661571,1752381053642,-151.0,0.0002006,2]
[371661573,1752381053652,-151.0,0.0002006,2]
[371661575,1752381053661,-193.293069,0.0002006,2]
[371661577,1752381053671,-193.293069,0.0002006,2]
[371661579,1752381053680,-151.0,0.0002006,2]
[371661581,1752381053689,-1500.0,0.0002006,7]
[371661583,1752381053698,-1500.0,0.0002006,7]
[371661585,1752381053708,-1500.0,0.0002006,7]
[371661587,1752381053717,-765.436671,0.0002006,7]
[371661589,1752381053727,-339.675967,0.0002006,2]
[371661591,1752381053738,-339.675967,0.0002006,2]
[371661593,1752381053747,-238.156678,0.0002006,2]
[371661595,1752381053757,-465.27680137,0.0002006,2]
[371661597,1752381053768,-463.18344566,0.0002006,2]
[371661599,1752381053778,-162.94119957,0.0002006,2]
[371661601,1752381053787,-464.32356804,0.0002006,2]
[371661603,1752381053797,-460.0,0.0002006,2]
[371661605,1752381053807,-460.0,0.0002006,2]
[371661607,1752381053816,-460.0,0.0002006,2]
[371661609,1752381053825,-460.0,0.0002006,2]
[371661611,1752381053835,-460.0,0.0002006,2]
[371661613,1752381053844,-151.0,0.00020061,2]
[371661615,1752381053854,-151.0,0.00020061,2]
[371661617,1752381053863,-152.977538,0.00020061,2]
[371661619,1752381053873,-12755.22848056,0.00020107,2]
[371661621,1752381053882,-151.0,0.00020107,2]
[371661623,1752381053892,-525.11524442,0.00020107,2]
[371661625,1752381053901,-157.479622,0.00020111,2]
[371661627,1752381053911,-1159.48,0.00020114,2]
[371661629,1752381053921,-460.0,0.00020114,2]
[371661631,1752381053930,-1032.33,0.00020114,2]
[371661633,1752381053940,-598.66,0.00020114,2]
[371661635,1752381053950,-460.0,0.00020114,2]
[371661637,1752381053959,-525.9,0.00020114,2]
[371661639,1752381053969,-460.0,0.00020114,2]
[371661641,1752381053978,-569.0,0.00020114,2]
[371661643,1752381053987,-460.0,0.00020114,2]
[371661645,1752381053996,-163.725809,0.00020114,2]
[371661647,1752381054005,-460.0,0.00020115,2]
[371661649,1752381054015,-460.0,0.00020115,2]
[371661651,1752381054024,-460.0,0.00020115,2]
[371661653,1752381054034,-326.45804749,0.00020115,2]
[371661655,1752381054043,-586.31248107,0.00020115,2]
[371661657,1752381054053,-460.0,0.00020115,2]
[371661659,1752381054062,-472.28404962,0.00020115,2]
[371661661,1752381054071,-357.62019154,0.00020115,2]
[371661663,1752381054081,-460.0,0.00020115,2]
[371661665,1752381054090,-460.0,0.00020115,2]
[371661667,1752381054099,-460.0,0.00020115,2]
[371661669,1752381054109,-460.0,0.00020115,2]
[371661671,1752381054118,-460.0,0.00020115,2]
[371661673,1752381054128,-581.48997077,0.00020115,2]
[371661675,1752381054138,-585.98152171,0.00020115,2]
[371661677,1752381054147,-460.0,0.00020115,2]
[371661679,1752381054157,-460.0,0.00020115,2]
[371661681,1752381054166,-460.0,0.00020115,2]
[371661683,1752381054176,-460.0,0.00020116,2]
[371661685,1752381054185,-460.0,0.00020116,2]
[371661687,1752381054194,-460.0,0.00020116,2]
[371661689,1752381054204,-460.0,0.00020116,2]
[371661691,1752381054213,-1610.1,0.00020116,2]
[371661693,1752381054222,-460.0,0.00020116,2]
[371661695,1752381054232,-460.0,0.00020116,2]
[371661697,1752381054241,-460.0,0.00020116,2]
[371661699,1752381054251,-552.32,0.00020116,2]
[371661701,1752381054260,-460.0,0.00020116,2]
[371661703,1752381054270,-1164.25,0.00020116,2]
[371661705,1752381054280,-460.0,0.00020116,2]
[371661707,1752381054296,-460.0,0.00020116,2]
[371661709,1752381054316,-1183.95,0.00020116,2]
[371661711,1752381054326,-4888.44545996,0.0002013,2]
[371661713,1752381054336,-151.41411,0.00020162,2]
[371661715,1752381054347,-151.0,0.00020162,2]
[371661717,1752381054356,-151.0,0.00020162,2]
[371661719,1752381054365,-154.843743,0.00020162,2]
[371661721,1752381054377,-151.0,0.00020162,2]
[371661723,1752381054387,-151.0,0.00020162,2]
[371661725,1752381054396,-152.550632,0.00020162,2]
[371661727,1752381054405,-161.907147,0.00020162,2]
[371661729,1752381054414,-151.0,0.00020162,2]
[371661731,1752381054423,-151.0,0.00020162,2]
[371661733,1752381054433,-151.0,0.00020162,2]
[371661735,1752381054443,-644.631289,0.00020162,2]
[371661737,1752381054455,-644.631289,0.00020162,2]
[371661739,1752381054465,-151.0,0.00020162,2]
[371661741,1752381054475,-151.0,0.00020162,2]
[371661743,1752381054484,-193.293069,0.00020162,2]
[371661745,1752381054494,-193.293069,0.00020162,2]
[371661747,1752381054503,-151.0,0.00020162,2]
[371661749,1752381054513,-339.675967,0.00020162,2]
[371661751,1752381054522,-339.675967,0.00020162,2]
[371661753,1752381054531,-151.0,0.00020163,2]
[371661755,1752381054540,-151.0,0.00020163,2]
[371661757,1752381054550,-151.0,0.00020163,2]
[371661759,1752381054559,-151.522882,0.00020163,2]
[371661761,1752381054568,-151.0,0.00020163,2]
[371661763,1752381054577,-151.0,0.00020163,2]
[371661765,1752381054587,-151.0,0.00020163,2]
[371661767,1752381054596,-151.0,0.00020163,2]
[371661769,1752381054605,-151.0,0.00020163,2]
[371661771,1752381054615,-151.0,0.00020173,2]
[371661773,1752381054624,-644.631289,0.00020173,2]
[371661775,1752381054633,-644.631289,0.00020173,2]
[371661777,1752381054643,-460.0,0.00020179,2]
[371661779,1752381054652,-364.660406,0.00020187,2]
[371661781,1752381054661,-163.725809,0.00020205,2]
[371661783,1752381054671,-501.43936644,0.00020221,2]
[371661785,1752381054681,-501.01071862,0.00020221,2]
[371661787,1752381054692,-522.89380388,0.00020232,2]
[371661789,1752381054701,-460.0,0.00020232,2]
[371661791,1752381054711,-460.0,0.00020232,2]
[371661793,1752381054720,-460.0,0.00020232,2]
[371661795,1752381054730,-460.0,0.00020232,2]
[371661797,1752381054739,-462.39839656,0.00020232,2]
[371661799,1752381054749,-460.0,0.00020232,2]
[371661801,1752381054759,-460.0,0.00020232,2]
[371661803,1752381054768,-460.0,0.00020232,2]
[371661805,1752381054777,-460.0,0.00020232,2]
[371661807,1752381054786,-460.0,0.00020232,2]
[371661809,1752381054796,-460.0,0.00020232,2]
[371661811,1752381054806,-460.0,0.00020232,2]
[371661813,1752381054815,-460.0,0.00020232,2]
[371661815,1752381054824,-460.0,0.00020232,2]
[371661817,1752381054834,-460.0,0.00020232,2]
[371661819,1752381054843,-460.0,0.00020232,2]
[371661821,1752381054853,-460.0,0.00020232,2]
[371661823,1752381054863,-460.0,0.00020232,2]
[371661825,1752381054873,-460.0,0.00020232,2]
[371661827,1752381054883,-590.94,0.00020232,2]
[371661829,1752381054893,-460.0,0.00020232,2]
[371661831,1752381054902,-460.0,0.00020232,2]
[371661833,1752381054912,-460.0,0.00020232,2]
[371661835,1752381054922,-460.0,0.00020232,2]
[371661837,1752381054932,-460.0,0.00020232,2]
[371661839,1752381054941,-460.0,0.00020232,2]
[371661841,1752381054951,-460.0,0.00020232,2]
[371661843,1752381054960,-258.75239896,0.00020232,2]
[371661845,1752381054970,-460.0,0.00020232,2]
[371661847,1752381054979,-460.0,0.00020232,2]
[371661849,1752381054989,-460.0,0.00020232,2]
[371661851,1752381054999,-460.0,0.00020232,2]
[371661853,1752381055008,-460.0,0.00020232,2]
[371661855,1752381055018,-460.0,0.00020232,2]
[371661857,1752381055028,-460.0,0.00020232,2]
[371661859,1752381055037,-460.0,0.00020232,2]
[371661861,1752381055046,-460.0,0.00020232,2]
[371661863,1752381055056,-460.0,0.00020232,2]
[371661865,1752381055066,-460.0,0.00020232,2]
[371661867,1752381055076,-460.0,0.00020232,2]
[371661869,1752381055087,-460.0,0.00020232,2]
[371661871,1752381055096,-460.0,0.00020232,2]
[371661873,1752381055105,-460.0,0.00020232,2]
[371661875,1752381055115,-207.83813621,0.00020232,2]
[371661877,1752381055125,-460.0,0.00020232,2]
[371661879,1752381055134,-460.0,0.00020232,2]
[371661881,1752381055144,-460.0,0.00020232,2]
[371661883,1752381055154,-151.0,0.00020234,2]
[371661885,1752381055163,-151.0,0.00020234,2]
[371661887,1752381055173,-294.043551,0.00020234,2]
[371661889,1752381055182,-460.0,0.00020234,2]
[371661891,1752381055192,-460.0,0.00020234,2]
[371661893,1752381055202,-460.0,0.00020234,2]
[371661895,1752381055212,-219.53975283,0.00020234,2]
[371661897,1752381055222,-460.0,0.00020234,2]
[371661899,1752381055231,-415.83,0.00020234,2]
[371661901,1752381055241,-460.0,0.00020234,2]
[371661903,1752381055252,-462.94249738,0.00020234,2]
[371661906,1752381055261,-261.52116688,0.00020234,2]
[371661908,1752381055271,-465.70400981,0.00020234,2]
[371661910,1752381055280,-460.0,0.00020234,2]
[371661912,1752381055289,-460.0,0.00020234,2]
[371661914,1752381055305,-460.0,0.00020234,2]
[371661915,1752381055315,-460.0,0.00020234,2]
[371661918,1752381055324,-460.0,0.00020234,2]
[371661920,1752381055334,-460.0,0.00020234,2]
[371661922,1752381055343,-460.0,0.00020234,2]
[371661924,1752381055353,-460.0,0.00020234,2]
[371661925,1752381055362,-460.0,0.00020234,2]
[371661927,1752381055372,-461.82584008,0.00020234,2]
[371661930,1752381055381,-460.0,0.00020234,2]
[371661932,1752381055391,-460.0,0.00020234,2]
[371661933,1752381055401,-460.0,0.00020234,2]
[371661935,1752381055410,-460.0,0.00020234,2]
[371661937,1752381055420,-460.0,0.00020234,2]
[371661940,1752381055429,-460.0,0.00020234,2]
[371661942,1752381055438,-460.0,0.00020234,2]
[371661943,1752381055448,-463.43253429,0.00020234,2]
[371661945,1752381055457,-460.0,0.00020234,2]
[371661948,1752381055467,-460.0,0.00020234,2]
[371661950,1752381055477,-460.0,0.00020234,2]
[371661951,1752381055487,-460.0,0.00020234,2]
[371661954,1752381055496,-460.0,0.00020234,2]
[371661956,1752381055505,-460.0,0.00020234,2]
[371661958,1752381055515,-193.293069,0.00020235,2]
[371661960,1752381055524,-193.293069,0.00020235,2]
[371661961,1752381055533,-339.675967,0.00020235,2]
[371661964,1752381055542,-339.675967,0.00020235,2]
[371661965,1752381055551,-151.0,0.00020262,2]
[371661967,1752381055561,-151.0,0.00020262,2]
[371661969,1752381055571,-151.0,0.00020262,2]
[371661971,1752381055580,-151.0,0.00020262,2]
[371661973,1752381055589,-151.0,0.00020262,2]
[371661974,1752381055599,-151.921054,0.00020262,2]
[371661975,1752381055608,-460.0,0.00020269,2]
[371661976,1752381055617,-460.0,0.00020269,2]
[371661977,1752381055627,-1882.52,0.00020269,2]
[371661978,1752381055636,-535.04,0.00020269,2]
[371661979,1752381055645,-460.0,0.00020269,2]
[371661980,1752381055655,-584.3295455,0.00020274,2]
[371661981,1752381055664,-163.725809,0.00020296,2]
[371661983,1752381055674,-12755.22848056,0.00020314,3]
[371661985,1752381055683,-151.0,0.00020314,2]
[371661987,1752381055693,-412.52077919,0.0002032,3]